bitfinex/quotes_BTCUSD_20250617
["timestamp","ask_amount","ask_price","bid_price","bid_amount"]
[1750175320038,1.39378014,104390.0,104380.0,0.00314255]
[1750175320956,1.37458014,104390.0,104380.0,0.00314255]
[1750175321713,1.42893704,104390.0,104380.0,0.00314255]
[1750175325047,1.36631704,104390.0,104380.0,0.00314255]
[1750175325530,1.43031704,104390.0,104380.0,0.00314255]
[1750175326047,0.95519057,104390.0,104380.0,0.00314255]
[1750175326596,1.36627704,104390.0,104380.0,0.00314255]
[1750175327040,0.95519057,104390.0,104380.0,0.00314255]
[1750175329220,1.42967704,104390.0,104380.0,0.00314255]
[1750175329942,1.45804789,104390.0,104380.0,0.00314255]
[1750175331802,1.49587569,104390.0,104380.0,0.00314255]
[1750175332218,1.46750484,104390.0,104380.0,0.00314255]
[1750175332434,1.49598511,104390.0,104380.0,0.00314255]
[1750175332871,1.49486511,104390.0,104380.0,0.00014255]
[1750175333080,1.50086511,104390.0,104380.0,0.00114255]
[1750175333296,1.50086511,104390.0,104380.0,0.00014255]
[1750175333762,1.50086511,104390.0,104380.0,0.00114255]
[1750175333763,1.22002511,104390.0,104380.0,0.00114255]
[1750175333949,1.23163731,104390.0,104380.0,0.00114255]
[1750175334199,0.99151084,104390.0,104380.0,0.00114255]
[1750175334423,0.98851084,104390.0,104380.0,0.00114255]
[1750175334645,0.99151084,104390.0,104380.0,0.00114255]
[1750175335550,1.40255731,104390.0,104380.0,0.00114255]
[1750175335767,1.37407704,104390.0,104380.0,0.00114255]
[1750175336642,1.40547704,104390.0,104380.0,0.00114255]
[1750175336883,1.46535731,104390.0,104380.0,0.00114255]
[1750175338029,1.05423084,104390.0,104380.0,0.00114255]
[1750175338253,1.46531731,104390.0,104380.0,0.00114255]
[1750175338691,1.05423084,104390.0,104380.0,0.00114255]
[1750175339135,1.46531731,104390.0,104380.0,0.00114255]
[1750175340914,1.05423084,104390.0,104380.0,0.00114255]
[1750175341133,1.46531731,104390.0,104380.0,0.00114255]
[1750175341587,1.46523731,104390.0,104380.0,0.00114255]
[1750175341804,1.50306511,104390.0,104380.0,0.00114255]
[1750175342018,1.46523731,104390.0,104380.0,0.00114255]
[1750175342476,1.09172864,104390.0,104380.0,0.00114255]
[1750175342710,1.53107654,104390.0,104380.0,0.00114255]
[1750175342944,1.50279996,104390.0,104380.0,0.00114255]
[1750175344091,1.25115996,104390.0,104380.0,0.00114255]
[1750175344310,1.47135996,104390.0,104380.0,0.00114255]
[1750175345230,0.84007349,104390.0,104380.0,0.00114255]
[1750175345460,0.96258057,104390.0,104380.0,0.06634255]
[1750175345683,0.74238057,104390.0,104380.0,0.06634255]
[1750175345867,0.96254057,104390.0,104380.0,0.06134255]
[1750175346330,1.37062704,104390.0,104380.0,0.06134255]
[1750175346539,1.36462704,104390.0,104380.0,0.06134255]
[1750175346752,1.37062704,104390.0,104380.0,0.06234255]
[1750175347036,1.0700346,104390.0,104380.0,0.06134255]
[1750175347249,1.2387546,104390.0,104380.0,0.06134255]
[1750175347458,0.95710057,104390.0,104380.0,0.06134255]
[1750175347674,1.0690346,104390.0,104380.0,0.06134255]
[1750175347887,1.2887546,104390.0,104380.0,0.06134255]
[1750175348785,0.67875502,104390.0,104380.0,0.06134255]
[1750175349013,0.89847502,104390.0,104380.0,0.06134255]
[1750175349264,0.53099205,104390.0,104380.0,0.06134255]
[1750175349511,0.53099205,104390.0,104380.0,0.59318453]
[1750175349512,0.13699464,104390.0,104380.0,0.59318453]
[1750175349731,0.005,104390.0,104380.0,0.59318444]
[1750175349951,0.02315827,104390.0,104380.0,0.60276445]
[1750175350167,0.27622399,104390.0,104380.0,0.60276463]
[1750175350393,0.42870608,104390.0,104380.0,0.39299658]
[1750175350620,0.42870608,104390.0,104380.0,0.06234255]
[1750175350847,0.42766608,104390.0,104380.0,0.06234255]
[1750175351514,0.22032687,104390.0,104380.0,0.69042611]
[1750175351741,0.0287369,104390.0,104380.0,0.70000603]
[1750175351989,0.71549284,104400.0,104390.0,0.0632]
[1750175352225,0.54489284,104400.0,104390.0,0.0632]
[1750175352447,0.71545284,104400.0,104390.0,0.0632]
[1750175352667,0.81160206,104400.0,104390.0,0.0632]
[1750175352905,0.71545284,104400.0,104390.0,0.0632]
[1750175353386,0.53257088,104400.0,104390.0,0.0632]
[1750175353597,0.70513088,104400.0,104390.0,0.0642]
[1750175355223,0.53457088,104400.0,104390.0,0.59602272]
[1750175355497,0.53457088,104400.0,104390.0,0.61518135]
[1750175356203,0.53457088,104400.0,104390.0,0.62476053]
[1750175356420,0.53457088,104400.0,104390.0,0.63433962]
[1750175356645,0.53457088,104400.0,104390.0,0.63433916]
[1750175356870,0.53457088,104400.0,104390.0,0.62476016]
[1750175357092,0.54414933,104400.0,104390.0,0.30368504]
[1750175357331,0.56330604,104400.0,104390.0,0.63433907]
[1750175357559,0.56330604,104400.0,104390.0,0.29410613]
[1750175357801,0.56330604,104400.0,104390.0,0.63433916]
[1750175358335,0.55372695,104400.0,104390.0,0.29410577]
[1750175358539,0.37173452,104400.0,104390.0,0.63433825]
[1750175359191,0.3525779,104400.0,104390.0,0.63433825]
[1750175359419,0.03173434,104400.0,104390.0,0.63433825]
[1750175360039,0.21372778,104400.0,104390.0,0.25578923]
[1750175360257,0.21272778,104400.0,104390.0,0.27494787]
[1750175360443,0.21272778,104400.0,104390.0,0.27594796]
[1750175360640,0.21072778,104400.0,104390.0,0.28452696]
[1750175360862,0.21072778,104400.0,104390.0,0.29410587]
[1750175361093,0.02973425,104400.0,104390.0,0.63733871]
[1750175361552,0.0290879,104400.0,104390.0,0.63733871]
[1750175361748,0.0290879,104400.0,104390.0,0.63737871]
[1750175361954,0.01950954,104400.0,104390.0,0.63737871]
[1750175362157,0.0290878,104400.0,104390.0,0.63737871]
[1750175362564,0.03866616,104400.0,104390.0,0.63737871]
[1750175363013,0.03866625,104400.0,104390.0,0.63737871]
[1750175364571,0.03866616,104400.0,104390.0,0.63737871]
[1750175364769,0.01950954,104400.0,104390.0,0.63737871]
[1750175364973,0.0290879,104400.0,104390.0,0.63737871]
[1750175365587,0.01950954,104400.0,104390.0,0.63737871]
[1750175365794,0.0290878,104400.0,104390.0,0.63737871]
[1750175366413,0.0290878,104400.0,104390.0,0.97737871]
[1750175366617,0.03866616,104400.0,104390.0,0.97737871]
[1750175366819,0.01057781,104400.0,104390.0,0.97737871]
[1750175367030,0.01057781,104400.0,104390.0,1.08816132]
[1750175367444,0.01057771,104400.0,104390.0,1.08816132]
[1750175367641,0.0297336,104400.0,104390.0,0.92774729]
[1750175367888,0.03931196,104400.0,104390.0,1.25840132]
[1750175368299,0.03931186,104400.0,104390.0,1.25840132]
[1750175368507,0.001,104400.0,104390.0,1.25840132]
[1750175368931,0.001,104400.0,104390.0,1.35455054]
[1750175371031,0.01057771,104400.0,104390.0,1.35447054]
[1750175371446,0.01057771,104400.0,104390.0,1.18431054]
[1750175371654,0.01057771,104400.0,104390.0,1.08816132]
[1750175371867,0.02973351,104400.0,104390.0,0.75750729]
[1750175372071,0.03931159,104400.0,104390.0,1.08816132]
[1750175372287,0.03931214,104400.0,104390.0,1.25828132]
[1750175372703,0.02973388,104400.0,104390.0,0.92762729]
[1750175372909,0.0201558,104400.0,104390.0,0.58762729]
[1750175373116,0.01057771,104400.0,104390.0,0.91828132]
[1750175373322,0.02973387,104400.0,104390.0,0.91828132]
[1750175373725,0.0201557,104400.0,104390.0,0.91828132]
[1750175373932,0.02973378,104400.0,104390.0,0.91828132]
[1750175374336,0.0201557,104400.0,104390.0,0.91828132]
[1750175374563,0.02015561,104400.0,104390.0,0.91828132]
[1750175374762,0.03931214,104400.0,104390.0,0.91828132]
[1750175374991,0.02973378,104400.0,104390.0,0.91828132]
[1750175375168,0.02015561,104400.0,104390.0,0.91828132]
[1750175375490,0.03931195,104400.0,104390.0,0.91824132]
[1750175375722,0.03931195,104400.0,104390.0,0.74816132]
[1750175375942,0.04889031,104400.0,104390.0,0.91820132]
[1750175376410,0.04889031,104400.0,104390.0,0.74816132]
[1750175376631,0.23088348,104400.0,104390.0,0.37422972]
[1750175376856,0.23088348,104400.0,104390.0,0.90366065]
[1750175376857,0.0393126,104400.0,104390.0,0.90366065]
[1750175377080,0.02015598,104400.0,104390.0,0.90366065]
[1750175377302,0.02973424,104400.0,104390.0,0.90366065]
[1750175377522,0.62620734,104420.0,104390.0,0.90365982]
[1750175377764,0.01915607,104400.0,104390.0,0.98065059]
[1750175377982,0.01915607,104400.0,104390.0,0.88450137]
[1750175378426,0.0095779,104400.0,104390.0,0.88150137]
[1750175378640,0.0095779,104400.0,104390.0,0.88050137]
[1750175379071,0.0095779,104400.0,104390.0,0.88042137]
[1750175379717,0.21072418,104410.0,104400.0,0.21072732]
[1750175379939,0.21072418,104410.0,104400.0,0.20114924]
[1750175380373,0.20114683,104410.0,104400.0,0.20114924]
[1750175380595,0.20114683,104410.0,104400.0,0.21030586]
[1750175381899,0.20114683,104410.0,104400.0,0.21988403]
[1750175382138,0.20114683,104410.0,104400.0,0.21230586]
[1750175382577,0.21070677,104410.0,104400.0,0.23146193]
[1750175382831,0.22986174,104410.0,104400.0,0.23146211]
[1750175383042,0.22028494,104410.0,104400.0,0.23146211]
[1750175384116,0.01915442,104410.0,104400.0,0.63389404]
[1750175384533,0.02873112,104410.0,104400.0,0.63389404]
[1750175384735,0.03830856,104410.0,104400.0,0.63389404]
[1750175384976,0.01915387,104410.0,104400.0,0.63389404]
[1750175385190,0.0095768,104410.0,104400.0,0.63389404]
[1750175385419,0.01915387,104410.0,104400.0,0.63389404]
[1750175386273,0.02873112,104410.0,104400.0,0.63389404]
[1750175386482,0.01915387,104410.0,104400.0,0.63389404]
[1750175386727,0.02873112,104410.0,104400.0,0.63389404]
[1750175386943,0.0095768,104410.0,104400.0,0.63389404]
[1750175387160,0.02873094,104410.0,104400.0,0.63389404]
[1750175387606,0.02873103,104410.0,104400.0,0.63389404]
[1750175387821,0.02873103,104410.0,104400.0,0.73004326]
[1750175388039,0.01915378,104410.0,104400.0,0.73004326]
[1750175388288,0.2416515,104420.0,104410.0,0.21070713]
[1750175388553,0.04053866,104420.0,104410.0,0.61443814]
[1750175388770,0.25122551,104420.0,104410.0,0.61443814]
[1750175389636,0.25222551,104420.0,104410.0,0.61443814]
[1750175389859,0.26380221,104420.0,104410.0,0.60486116]
[1750175390068,0.24464999,104420.0,104410.0,0.77458116]
[1750175390504,0.02215277,104420.0,104410.0,0.78415814]
[1750175390932,0.21368695,104420.0,104410.0,0.77458116]
[1750175391356,0.21368695,104420.0,104410.0,0.38046713]
[1750175391823,0.21368695,104420.0,104410.0,0.37084997]
[1750175392038,0.21368695,104420.0,104410.0,0.38042732]
[1750175392912,0.003,104420.0,104410.0,0.39000448]
[1750175393194,0.003,104420.0,104410.0,0.79293558]
[1750175393195,0.0413048,104420.0,104410.0,0.79293558]
[1750175393401,0.05088141,104420.0,104410.0,0.80251256]
[1750175393618,0.24241559,104420.0,104410.0,0.80251256]
[1750175393839,0.05088141,104420.0,104410.0,0.80251256]
[1750175394084,0.23283971,104420.0,104410.0,0.73023558]
[1750175394298,0.23283971,104420.0,104410.0,0.72065851]
[1750175394546,0.22326356,104420.0,104410.0,0.38042732]
[1750175394977,0.22326356,104420.0,104410.0,0.39000448]
[1750175395193,0.22326356,104420.0,104410.0,0.38042732]
[1750175395412,0.22326356,104420.0,104410.0,0.39000457]
[1750175395633,0.03172874,104420.0,104410.0,0.39958155]
[1750175395859,0.22326292,104420.0,104410.0,0.39000457]
[1750175396732,0.22326292,104420.0,104410.0,0.39958173]
[1750175397270,0.03172865,104420.0,104410.0,0.40915871]
[1750175397486,0.02215222,104420.0,104410.0,0.80331274]
[1750175397700,0.003,104420.0,104410.0,1.01024457]
[1750175397912,0.01257588,104420.0,104410.0,0.74441535]
[1750175398130,0.04130462,104420.0,104410.0,0.30297871]
[1750175398333,0.0317281,104420.0,104410.0,0.80315274]
[1750175398540,0.03830453,104420.0,104410.0,0.80315274]
[1750175398912,0.03830444,104420.0,104410.0,0.80415274]
[1750175399111,0.0287281,104420.0,104410.0,0.80415274]
[1750175399597,0.2231392,104430.0,104420.0,0.22983952]
[1750175399598,0.24228831,104430.0,104420.0,0.22983952]
[1750175399806,0.2518641,104430.0,104420.0,0.21068731]
[1750175400221,0.25186336,104430.0,104420.0,0.2298399]
[1750175400432,0.22981752,104430.0,104420.0,0.2298399]
[1750175400643,0.22981733,104430.0,104420.0,0.56049393]
[1750175400854,0.00957505,104430.0,104420.0,0.72986133]
[1750175401064,0.0201502,104430.0,104420.0,0.71470828]
[1750175401284,0.01057496,104430.0,104420.0,0.71470828]
[1750175401522,0.01057496,104430.0,104420.0,0.38505425]
[1750175401727,0.001,104430.0,104420.0,0.88520082]
[1750175401961,0.02015057,104430.0,104420.0,0.88520082]
[1750175402169,0.001,104430.0,104420.0,0.88520082]
[1750175402819,0.001,104430.0,104420.0,0.89974167]
[1750175403698,0.04787207,104440.0,104430.0,0.22024238]
[1750175403914,0.04787207,104440.0,104430.0,0.55089641]
[1750175404136,0.23936958,104440.0,104430.0,0.55089641]
[1750175404353,0.28950945,104440.0,104430.0,0.20109163]
[1750175404574,0.2799354,104440.0,104430.0,0.22024274]
[1750175404789,0.22979553,104440.0,104430.0,0.23581807]
[1750175405018,0.23079553,104440.0,104430.0,0.23581807]
[1750175405666,0.02014855,104440.0,104430.0,0.41471331]
[1750175405917,0.23079534,104440.0,104430.0,0.40513798]
[1750175406127,0.23079534,104440.0,104430.0,0.41471313]
[1750175406567,0.02014837,104440.0,104430.0,0.87391638]
[1750175406779,0.02014837,104440.0,104430.0,0.81006716]
[1750175406986,0.02972278,104440.0,104430.0,0.81006716]
[1750175407429,0.03929738,104440.0,104430.0,0.81006716]
[1750175407653,0.02972278,104440.0,104430.0,0.81006716]
[1750175407867,0.01057414,104440.0,104430.0,0.81006716]
[1750175408310,0.01057414,104440.0,104430.0,0.90621638]
[1750175408762,0.001,104440.0,104430.0,1.14072119]
[1750175408975,0.001,104440.0,104430.0,0.90630892]
[1750175409185,0.01057405,104440.0,104430.0,0.90630892]
[1750175409601,0.001,104440.0,104430.0,0.90630892]
[1750175410041,0.001,104440.0,104430.0,0.92811022]
[1750175410464,0.001,104440.0,104430.0,1.2733051]
[1750175410884,0.001,104440.0,104430.0,0.92084977]
[1750175411093,0.01057423,104440.0,104430.0,0.92068977]
[1750175411520,0.001,104440.0,104430.0,0.92068977]
[1750175411943,0.02014828,104440.0,104430.0,0.94971808]
[1750175412153,0.001,104440.0,104430.0,0.94971808]
[1750175412397,0.001,104440.0,104430.0,1.0458673]
[1750175412605,0.01057414,104440.0,104430.0,0.94971808]
[1750175413033,0.02972296,104440.0,104430.0,0.94971808]
[1750175413239,0.02014846,104440.0,104430.0,0.94971808]
[1750175413451,0.03929765,104440.0,104430.0,0.78055808]
[1750175413694,0.03929765,104440.0,104430.0,0.94967808]
[1750175413916,0.23079516,104440.0,104430.0,0.16694176]
[1750175414155,0.59913586,104440.0,104430.0,0.008]
[1750175414361,0.30098183,104440.0,104430.0,0.17708]
[1750175414814,0.2769467,104440.0,104430.0,0.17708]
[1750175415482,0.2444467,104440.0,104430.0,0.008]
[1750175415912,0.2116467,104440.0,104430.0,0.20909154]
[1750175416124,0.2116467,104440.0,104430.0,0.21866714]
[1750175416761,0.2116467,104440.0,104430.0,0.20909154]
[1750175416970,0.2111467,104440.0,104430.0,0.20909154]
[1750175417651,0.2111467,104440.0,104430.0,0.008]
[1750175417652,0.2015722,104440.0,104430.0,0.008]
[1750175417860,0.25779751,104440.0,104430.0,0.008]
[1750175418762,0.58845154,104440.0,104430.0,0.008]
[1750175419181,0.80561154,104440.0,104430.0,0.008]
[1750175419403,0.47495751,104440.0,104430.0,0.008]
[1750175420944,0.25779751,104440.0,104430.0,0.20909144]
[1750175421149,0.0100746,104440.0,104430.0,0.55889604]
[1750175421368,0.23987013,104440.0,104430.0,0.6358685]
[1750175421802,0.02922315,104440.0,104430.0,0.6358685]
[1750175422026,0.0005,104440.0,104430.0,0.8895978]
[1750175422255,0.0005,104440.0,104430.0,0.90413865]
[1750175422904,0.0005,104440.0,104430.0,1.23479268]
[1750175423294,0.0005,104440.0,104430.0,0.90413865]
[1750175423463,0.0005,104440.0,104430.0,1.23479268]
[1750175423668,0.0005,104440.0,104430.0,0.66963384]
[1750175423899,0.0005,104440.0,104430.0,1.3308319]
[1750175424319,0.0005,104440.0,104430.0,1.35916909]
[1750175425509,0.0005,104440.0,104430.0,1.69916909]
[1750175426568,0.00026675,104440.0,104430.0,1.69916909]
[1750175426994,0.00026675,104440.0,104430.0,1.36851506]
[1750175427212,0.00026675,104440.0,104430.0,1.36839506]
[1750175427907,0.00026675,104440.0,104430.0,1.27224584]
[1750175428549,0.00026675,104440.0,104430.0,1.10340584]
[1750175429020,0.00026675,104440.0,104430.0,1.27220584]
[1750175430346,0.00026675,104440.0,104430.0,0.94155181]
[1750175430556,0.00026675,104440.0,104430.0,1.27220584]
[1750175430765,0.0098408,104440.0,104430.0,1.27220584]
[1750175431195,0.00026675,104440.0,104430.0,1.27220584]
[1750175431645,0.00026675,104440.0,104430.0,1.10340584]
[1750175431869,0.01941512,104440.0,104430.0,1.03790584]
[1750175432094,0.01941512,104440.0,104430.0,1.20662584]
[1750175432311,0.00984089,104440.0,104430.0,1.20662584]
[1750175432520,0.0098408,104440.0,104430.0,1.20662584]
[1750175433169,0.01941503,104440.0,104430.0,1.20662584]
[1750175433413,0.00026675,104440.0,104430.0,1.20662584]
[1750175433625,0.00984089,104440.0,104430.0,1.20662584]
[1750175433846,0.01941512,104440.0,104430.0,0.70725181]
[1750175434083,0.30053651,104440.0,104430.0,0.19940584]
[1750175434292,0.28138814,104440.0,104430.0,0.37770154]
[1750175434509,0.04833786,104450.0,104430.0,0.40642716]
[1750175434694,0.04833786,104450.0,104440.0,0.2010722]
[1750175434947,0.04833786,104450.0,104430.0,0.28255641]
[1750175434948,0.00957441,104440.0,104430.0,0.28255641]
[1750175435157,0.21064679,104440.0,104430.0,0.43465972]
[1750175435411,0.2393704,104440.0,104430.0,0.25640485]
[1750175435637,0.21064707,104440.0,104430.0,0.002]
[1750175436071,0.21064707,104440.0,104420.0,0.22040559]
[1750175436072,0.19151584,104430.0,104420.0,0.22040559]
[1750175436286,0.19151584,104430.0,104420.0,0.00014267]
[1750175437586,0.25511584,104430.0,104420.0,0.00014267]
[1750175439230,0.25511584,104430.0,104420.0,0.00414267]
[1750175439445,0.25511584,104430.0,104420.0,0.00614267]
[1750175441408,0.68036461,104430.0,104420.0,0.00614267]
[1750175442278,0.58576987,104430.0,104420.0,0.00614267]
[1750175443388,0.68201163,104430.0,104420.0,0.00614267]
[1750175444040,0.68201163,104430.0,104420.0,0.00414267]
[1750175444254,0.68201163,104430.0,104420.0,0.00014267]
[1750175444777,0.3513576,104430.0,104420.0,0.00014267]
[1750175444997,0.68201163,104430.0,104420.0,0.00014267]
[1750175445209,0.75316514,104430.0,104420.0,0.00014267]
[1750175445417,0.75316514,104430.0,104420.0,0.00018267]
[1750175446284,0.75316514,104430.0,104420.0,0.00218267]
[1750175455036,0.80100514,104430.0,104420.0,0.00218267]
[1750175455263,0.72985163,104430.0,104420.0,0.00218267]
[1750175455686,1.06050566,104430.0,104420.0,0.00218267]
[1750175456131,0.89821163,104430.0,104420.0,0.00218267]
[1750175458711,0.89817163,104430.0,104420.0,0.00218267]
[1750175459344,0.99432085,104430.0,104420.0,0.00218267]
[1750175459518,0.89817163,104430.0,104420.0,0.00218267]
[1750175460202,0.68201163,104430.0,104420.0,0.00218267]
[1750175460413,0.89817163,104430.0,104420.0,0.00218267]
[1750175461508,0.89813163,104430.0,104420.0,0.00218267]
[1750175462182,0.52216987,104430.0,104420.0,0.00218267]
[1750175462441,0.23935584,104430.0,104420.0,0.26639346]
[1750175462670,0.40759584,104430.0,104420.0,0.28554641]
[1750175462892,0.40759584,104430.0,104420.0,0.26639346]
[1750175463594,0.00957542,104430.0,104420.0,0.28554623]
[1750175463905,0.00957542,104430.0,104420.0,0.63535266]
[1750175463906,0.22981762,104430.0,104420.0,0.63535266]
[1750175464151,0.03830168,104430.0,104420.0,0.63535211]
[1750175464403,0.00957496,104430.0,104420.0,0.61619906]
[1750175464647,0.01915011,104430.0,104420.0,0.61669906]
[1750175464865,0.02872562,104430.0,104420.0,0.61669906]
[1750175465290,0.02872544,104430.0,104420.0,0.61469906]
[1750175465714,0.21064625,104440.0,104430.0,0.28382857]
[1750175465932,0.02872278,104440.0,104430.0,0.6144826]
[1750175466147,0.03829747,104440.0,104430.0,0.28382857]
[1750175466358,0.23937058,104440.0,104430.0,0.28382857]
[1750175466787,0.0382982,104440.0,104430.0,0.28382857]
[1750175467004,0.02872342,104440.0,104430.0,0.28382857]
[1750175467219,0.02872342,104440.0,104430.0,0.28582857]
[1750175467477,0.02872342,104440.0,104430.0,0.6164826]
[1750175467695,0.10575181,104450.0,104440.0,0.26687229]
[1750175467915,0.27391181,104450.0,104440.0,0.26687229]
[1750175468131,0.27391181,104450.0,104440.0,0.27644698]
[1750175468577,0.27355181,104450.0,104440.0,0.27644698]
[1750175468798,0.26397786,104450.0,104440.0,0.28602158]
[1750175469021,0.26397786,104450.0,104440.0,0.0658]
[1750175469231,0.26697786,104450.0,104440.0,0.0658]
[1750175469438,0.26697786,104450.0,104440.0,0.26687238]
[1750175470355,0.09885786,104450.0,104440.0,0.28602167]
[1750175470790,0.10843163,104450.0,104440.0,0.29559599]
[1750175471007,0.07048513,104450.0,104440.0,0.29559608]
[1750175471222,0.07048513,104450.0,104440.0,0.63582434]
[1750175471223,0.02214699,104450.0,104440.0,0.63582434]
[1750175471466,0.0317204,104450.0,104440.0,0.63582434]
[1750175471939,0.04129417,104450.0,104440.0,0.63582434]
[1750175472146,0.03829417,104450.0,104440.0,0.63582434]
[1750175472357,0.03829417,104450.0,104440.0,0.64082434]
[1750175472570,0.03829417,104450.0,104440.0,0.63882434]
[1750175472789,0.04786803,104450.0,104440.0,0.63582434]
[1750175473015,0.2393472,104450.0,104440.0,0.64382434]
[1750175473228,0.22977443,104450.0,104440.0,0.29402167]
[1750175473435,0.22977443,104450.0,104440.0,0.30359608]
[1750175473876,0.22977443,104450.0,104440.0,0.29402167]
[1750175473877,0.22020075,104450.0,104440.0,0.29402167]
[1750175474095,0.22020075,104450.0,104440.0,0.0738]
[1750175474096,0.20105312,104450.0,104440.0,0.0738]
[1750175474322,0.21062671,104450.0,104440.0,0.27726562]
[1750175474534,0.02872103,104450.0,104440.0,0.2844468]
[1750175474751,0.22020011,104450.0,104440.0,0.62467533]
[1750175474968,0.21062671,104450.0,104440.0,0.60552641]
[1750175475237,0.21062671,104450.0,104440.0,0.27487238]
[1750175475449,0.00957386,104450.0,104440.0,0.28308716]
[1750175475670,0.20105303,104450.0,104440.0,0.28308716]
[1750175475890,0.20105303,104450.0,104440.0,0.07244]
[1750175476109,0.5911946,104450.0,104440.0,0.008]
[1750175476327,0.53170706,104450.0,104440.0,0.008]
[1750175476762,0.20105303,104450.0,104440.0,0.004]
[1750175477196,0.53170706,104450.0,104440.0,0.006]
[1750175477628,0.69966706,104450.0,104440.0,0.006]
[1750175477845,0.76316706,104450.0,104440.0,0.006]
[1750175478080,0.85931628,104450.0,104440.0,0.002]
[1750175478306,0.73216706,104450.0,104440.0,0.005]
[1750175478518,0.69966706,104450.0,104440.0,0.005]
[1750175479643,1.19720882,104450.0,104440.0,0.005]
[1750175480538,1.21982218,104450.0,104440.0,0.005]
[1750175480977,1.3159714,104450.0,104440.0,0.002]
[1750175481197,1.64662543,104450.0,104440.0,0.002]
[1750175481417,1.3159714,104450.0,104440.0,0.002]
[1750175481655,0.6046722,104440.0,104430.0,0.03]
[1750175481862,1.07904799,104440.0,104430.0,0.03]
[1750175482516,1.1683976,104440.0,104430.0,0.03]
[1750175483018,1.1713976,104440.0,104430.0,0.03]
[1750175483238,0.70391396,104440.0,104430.0,0.03]
[1750175483458,1.24992799,104440.0,104430.0,0.03]
[1750175483701,1.58058202,104440.0,104430.0,0.03]
[1750175484383,1.62903188,104440.0,104430.0,0.03]
[1750175484583,1.60319848,104440.0,104430.0,0.03]
[1750175484850,1.34607721,104440.0,104430.0,0.03]
[1750175485517,1.36869507,104440.0,104430.0,0.03]
[1750175485735,1.39787245,104440.0,104430.0,0.03]
[1750175486166,1.03808104,104440.0,104430.0,0.03]
[1750175486382,1.36873507,104440.0,104430.0,0.03]
[1750175487056,1.34611721,104440.0,104430.0,0.03]
[1750175487500,1.03456799,104440.0,104430.0,0.03]
[1750175487931,1.24996799,104440.0,104430.0,0.03]
[1750175489239,0.64031396,104440.0,104430.0,0.0617]
[1750175489527,0.2040722,104440.0,104430.0,0.093]
[1750175489767,0.4194722,104440.0,104430.0,0.093]
[1750175490004,0.84478677,104440.0,104430.0,0.093]
[1750175490241,0.84478677,104440.0,104430.0,0.0613]
[1750175490485,0.51113274,104440.0,104430.0,0.0613]
[1750175490751,0.84178677,104440.0,104430.0,0.0925]
[1750175491207,0.84178677,104440.0,104430.0,0.0945]
[1750175494051,0.74712623,104440.0,104430.0,0.0945]
[1750175494498,0.4164722,104440.0,104430.0,0.0945]
[1750175494913,0.2010722,104440.0,104430.0,0.0945]
[1750175495131,0.4164722,104440.0,104430.0,0.0945]
[1750175495975,0.74712623,104440.0,104430.0,0.0945]
[1750175496925,0.84327545,104440.0,104430.0,0.0945]
[1750175497698,0.84327545,104440.0,104430.0,0.032]
[1750175497952,1.70120464,104440.0,104430.0,0.032]
[1750175498168,1.36734371,104440.0,104430.0,0.032]
[1750175498600,1.36734371,104440.0,104430.0,0.03]
[1750175498818,1.34471721,104440.0,104430.0,0.03]
[1750175499035,1.37034678,104440.0,104430.0,0.03]
[1750175499259,0.64031396,104440.0,104430.0,0.03]
[1750175499467,1.01832799,104440.0,104430.0,0.03]
[1750175499686,1.18620799,104440.0,104430.0,0.03]
[1750175500130,0.84620799,104440.0,104430.0,0.03]
[1750175500349,0.58208623,104440.0,104430.0,0.03]
[1750175500569,0.4193122,104440.0,104430.0,0.0931]
[1750175501684,0.4163122,104440.0,104430.0,0.0931]
[1750175501913,0.4163122,104440.0,104430.0,0.0951]
[1750175502420,0.2010722,104440.0,104430.0,0.0951]
[1750175502638,0.3785268,104440.0,104430.0,0.29619163]
[1750175503300,0.3689522,104440.0,104430.0,0.0951]
[1750175503526,0.3689522,104440.0,104430.0,0.28661584]
[1750175503745,0.3689522,104440.0,104430.0,0.0951]
[1750175504175,0.2010722,104440.0,104430.0,0.29619163]
[1750175504389,0.2010722,104440.0,104430.0,0.31534275]
[1750175504605,0.2010722,104440.0,104430.0,0.30576733]
[1750175504860,0.3689122,104440.0,104430.0,0.31534293]
[1750175505077,0.3689122,104440.0,104430.0,0.33449386]
[1750175505516,0.22022139,104440.0,104430.0,0.64599668]
[1750175505738,0.22022139,104440.0,104430.0,0.30576714]
[1750175505956,0.22022139,104440.0,104430.0,0.31534265]
[1750175506435,0.21064698,104440.0,104430.0,0.30576714]
[1750175506877,0.21064698,104440.0,104430.0,0.31534265]
[1750175507551,0.21064698,104440.0,104430.0,0.3344934]
[1750175507770,0.01914947,104440.0,104430.0,0.33449285]
[1750175507978,0.21064698,104440.0,104430.0,0.3249177]
[1750175509502,0.22024017,104450.0,104440.0,0.26467229]
[1750175509736,0.35931917,104450.0,104440.0,0.0636]
[1750175511367,0.45546839,104450.0,104440.0,0.0636]
[1750175511605,0.35931917,104450.0,104440.0,0.25709751]
[1750175511836,0.35931917,104450.0,104440.0,0.26667238]
[1750175512078,0.19147917,104450.0,104440.0,0.26667238]
[1750175512311,0.35931917,104450.0,104440.0,0.27624698]
[1750175512562,0.21062662,104450.0,104440.0,0.61647542]
[1750175512798,0.21062662,104450.0,104440.0,0.61847542]
[1750175513047,0.0095734,104450.0,104440.0,0.65778786]
[1750175513295,0.03829105,104460.0,104450.0,0.22020012]
[1750175513541,0.03829105,104460.0,104450.0,0.62482746]
[1750175513777,0.03829105,104460.0,104450.0,0.62482755]
[1750175513778,0.22975189,104460.0,104450.0,0.62482755]
[1750175514012,0.2201794,104460.0,104450.0,0.28460012]
[1750175514478,0.21060664,104460.0,104450.0,0.27502662]
[1750175515374,0.22017968,104460.0,104450.0,0.36907637]
[1750175515589,0.22017968,104460.0,104450.0,0.28460002]
[1750175516256,0.22017968,104460.0,104450.0,0.28460012]
[1750175516478,0.01914543,104460.0,104450.0,0.29417343]
[1750175516702,0.23866422,104470.0,104460.0,0.26383369]
[1750175516923,0.22893889,104470.0,104460.0,0.27340627]
[1750175517148,0.23851064,104470.0,104460.0,0.27340627]
[1750175517365,0.0287159,104470.0,104460.0,0.27340627]
[1750175517600,0.22015841,104470.0,104460.0,0.61363279]
[1750175517824,0.00957148,104470.0,104460.0,0.61363279]
[1750175518044,0.02880563,104470.0,104460.0,0.62320519]
[1750175518278,0.03837757,104470.0,104460.0,0.62520519]
[1750175518488,0.2232486,104470.0,104460.0,0.44316627]
[1750175518702,0.21067703,104470.0,104460.0,0.27540645]
[1750175518924,0.21067703,104470.0,104460.0,0.0668]
[1750175518925,0.2648167,104470.0,104460.0,0.0668]
[1750175519362,0.28102452,104470.0,104460.0,0.0628]
[1750175519586,0.28102452,104470.0,104460.0,0.0668]
[1750175519809,0.28102452,104470.0,104460.0,0.0688]
[1750175520058,0.28102452,104470.0,104460.0,0.26026084]